Cogmind - Beta 10.2 @@@ ROGUE MODE // 2020.12.30 @ 01:28:48 Player: WeirdFoe Result: Destroyed by H-55 Commando with Gauss Rifle Performance ------------- Evolutions (0) 0 Regions Visited (3) 600 Robots Destroyed (20) 100 Value Destroyed (724) 724 Prototype IDs (3) 60 Alien Tech Used (0) 0 Bonus (300) 300 TOTAL SCORE: 1784 Bonus ------- Aligned with FarCom 300 Cogmind --------- Core Integrity 0/250 Matter 125/300 Energy 250/250 System Corruption 6% Temperature Cool (0) Movement Walking (210) Ox3 Location -10/Exiles Parts ------- > --- POWER (1) -------- Ion Engine > --- PROPULSION (2) --- Aluminum Leg > --- UTILITY (2) ------ Large Storage Unit Large Storage Unit > --- WEAPON (2) ------- (None) > --- INVENTORY (16) --- Improved Heat Sink Large Battery (300) Medium Matter Pod (100) Cloak of Protection Beam Cannon Beam Cannon Beam Cannon Peak State ------------ > --- POWER ------------ Ion Engine > --- PROPULSION ------- Aluminum Leg Aluminum Leg > --- UTILITY ---------- Large Storage Unit Trap Reconfigurator > --- WEAPON ----------- Beam Cannon Beam Cannon > --- INVENTORY -------- Ion Engine Aluminum Leg Aluminum Leg Large Storage Unit Large Battery Medium Matter Pod Beam Cannon Beam Cannon Grenade Launcher Grenade Launcher [Rating: 16] Favorites ----------- Power Ion Engine Engine Ion Engine Propulsion Aluminum Leg Leg Aluminum Leg Wheel Compact Wheel Utility Large Storage Unit Device Improved Heat Sink Storage Large Storage Unit Weapon Beam Cannon Energy Gun Small Laser Energy Cannon Beam Cannon Ballistic Gun Assault Rifle Launcher Grenade Launcher Build | -11 -10 -10 -10 ------- Run | Scr Mat Min Exi Slots Evolved . | . . . . Power . | . . . . Propulsion . | . . . . Utility . | . . . . Weapon . | . . . . Parts Attached 25 | 6 9 . 10 Power 3 | 1 1 . 1 Engine 3 | 1 1 . 1 Core . | . . . . Reactor . | . . . . Propulsion 6 | 2 2 . 2 Treads . | . . . . Leg 4 | . 2 . 2 Wheel 2 | 2 . . . Hover . | . . . . Flight . | . . . . Utility 9 | 1 4 . 4 Device 5 | . 2 . 3 Storage 4 | 1 2 . 1 Processor . | . . . . Hackware . | . . . . Protection . | . . . . Artifact . | . . . . Weapon 7 | 2 2 . 3 Energy Gun 1 | 1 . . . Energy Cannon 3 | . 2 . 1 Ballistic Gun 1 | 1 . . . Ballistic Cannon . | . . . . Launcher 2 | . . . 2 Special Weapon . | . . . . Impact Weapon . | . . . . Slashing Weapon . | . . . . Piercing Weapon . | . . . . Special Melee Weapon . | . . . . Unidentified Prototypes 3 | . . . 3 Parts Lost 7 | . . . 7 Power 1 | . . . 1 Propulsion 3 | . . . 3 Utility . | . . . . Weapon 3 | . . . 3 Highest Loss Streak 7 | . . . 7 Average Slot Usage (%) 97 | . 100 100 93 Engine 14 | . 14 14 14 Leg 27 | . 27 28 26 Device 9 | . 9 14 5 Storage 17 | . 18 14 19 Energy Gun 1 | . 4 . . Energy Cannon 24 | . 18 28 24 Ballistic Gun 1 | . 4 . . Naked Turns . | . . . . Heaviest Build 43 | 10 38 28 43 Greatest Support 32 | 32 32 20 20 Greatest Overweight (x) 3 | 1 1 1 3 Average Overweight (x) 1 | . . 1 1 Largest Inventory Capacity 16 | 6 16 10 16 Average Capacity 11 | 5 11 10 12 Most Carried 11 | 3 10 10 11 Average Carried 9 | 2 8 9 9 Final Capacity 16 | 6 10 10 16 Final Carried 10 | 3 10 10 7 Class Distribution -------------------- 100% | Mutant Dominant Class ---------------- Mutant | -10/Materials Mutant | -10/Mines Mutant | -10/Exiles Resources | -11 -10 -10 -10 ----------- Run | Scr Mat Min Exi Matter Collected 474 | 284 90 100 . Remotely . | . . . . Salvage Created 623 | 61 230 60 272 Parts 31 | . 14 1 16 Haulers Intercepted . | . . . . Recyclers Shooed . | . . . . Parts Field Recycled . | . . . . Retrieved Matter . | . . . . Parts Self-Destructed . | . . . . Prevented . | . . . . Kills | -11 -10 -10 -10 ------- Run | Scr Mat Min Exi Combat Hostiles Destroyed 17 | . 4 . 13 Cannons 5 | . 4 . 1 AOE 12 | . . . 12 Classes Destroyed 4 | 1 1 . 2 Recycler 3 | 1 1 1 . Grunt 12 | . 4 . 8 Hunter 3 | . . . 3 Programmer 2 | . . . 2 Best Kill Streak 13 | 1 3 1 13 Combat Bots Only 13 | . 2 . 13 Max Kills in Single Turn 5 | 1 1 1 5 Gunslinging . | . . . . Exploded 5 | . . . 5 Melee . | . . . . Uniques/NPCs Destroyed . | . . . . Combat | -11 -10 -10 -10 -------- Run | Scr Mat Min Exi Damage Taken 1029 | . 132 . 897 Core 256 | . 10 . 246 Absorbed by Shields . | . . . . Core Remaining (%) 100 | 100 . . . Volleys Fired 34 | 8 11 1 14 Largest 2 | 2 2 2 2 Hottest 120 | 60 120 120 120 Shots Fired 60 | 16 22 2 20 Gun 16 | 16 . . . Cannon 34 | . 22 2 10 Launcher 10 | . . . 10 Special . | . . . . Kinetic 8 | 8 . . . Thermal 42 | 8 22 2 10 Explosive 10 | . . . 10 Electromagnetic . | . . . . Robot Hit Streak 16 | 5 16 1 5 Robot Miss Streak 3 | 3 1 1 2 Penetration Max . | . . . . Secondary Targets . | . . . . Shots Hit Robots 40 | 10 17 1 12 Core Hits 38 | 2 6 1 29 Critical Hits 1 | . 1 . . Critical Kills . | . . . . Critical Parts Destroyed 1 | . 1 . . Melee Attacks . | . . . . Impact . | . . . . Slashing . | . . . . Piercing . | . . . . Sneak Attacks . | . . . . Combat Hostiles . | . . . . Follow-up Attacks . | . . . . Damage Inflicted 1512 | 120 299 18 1075 Guns 120 | 120 . . . Cannons 353 | . 299 18 36 Explosions 1039 | . . . 1039 Melee . | . . . . Ramming . | . . . . Kinetic 55 | 55 . . . Thermal 418 | 65 299 18 36 Explosive 1039 | . . . 1039 Electromagnetic . | . . . . Impact . | . . . . Slashing . | . . . . Piercing . | . . . . Highest Corruption 6 | . 1 1 6 Average Corruption 1 | . 1 1 1 Corruption Purged . | . . . . Effects 5 | . . 1 4 Message Errors 3 | . . 1 2 Data Loss (minor) 1 | . . . 1 Targeting Errors 1 | . . . 1 Overload Shots . | . . . . Overflow Damage 22 | . 13 . 9 Projectiles 13 | . 13 . . Explosions 9 | . . . 9 Melee . | . . . . Knockbacks . | . . . . Impact . | . . . . Kinetic . | . . . . Secondary . | . . . . Self-Inflicted Damage 68 | . . . 68 Shots 4 | . . . 4 Rammed . | . . . . Targets Rammed . | . . . . Kicked . | . . . . Crushed . | . . . . Highest Temperature 276 | . 186 18 276 Average Temperature 115 | . 79 12 157 Received Heat Transfer 174 | . 78 . 96 Effects 1 | . . . 1 Energy Bleed 1 | . . . 1 Siege Activations . | . . . . Robots Corrupted . | . . . . Combat Hostiles . | . . . . Parts Fried . | . . . . Impact Corruptions . | . . . . Robots Melted . | . . . . Combat Hostiles . | . . . . Parts Melted 1 | . . . 1 Heat Transferred 890 | 150 629 37 74 Parts Sabotaged . | . . . . Parts Stolen . | . . . . Parts Stripped . | . . . . Power Chain Reactions . | . . . . Missiles Intercepted . | . . . . Alert | -11 -10 -10 -10 ------- Run | Scr Mat Min Exi Peak Influence 162 | 5 162 68 . Initial 63 | . 3 63 . Average 48 | . 57 48 . Maximum Alert Level . | . . . . Low Security (%) 100 | 100 100 100 . Level 1 . | . . . . Level 2 . | . . . . Level 3 . | . . . . Level 4 . | . . . . Level 5 . | . . . . High Security . | . . . . Max Security . | . . . . Squads Dispatched 2 | . 2 . . Investigation 1 | . 1 . . Extermination . | . . . . Reinforcement 1 | . 1 . . Assault . | . . . . Garrison . | . . . . Intercept . | . . . . Construction Impeded . | . . . . Haulers Reinforced . | . . . . Stealth | -11 -10 -10 -10 --------- Run | Scr Mat Min Exi Distress Signals . | . . . . Communications Jammed . | . . . . Distress Signals . | . . . . Times Spotted 30 | . 6 . 24 Peak Tracking Total 12 | . 3 . 12 Tactical Retreats 1 | . 1 . . Traps | -11 -10 -10 -10 ------- Run | Scr Mat Min Exi Traps Triggered . | . . . . Indirectly . | . . . . Trap Hack Attempts . | . . . . Triggered . | . . . . Disarmed . | . . . . Reprogrammed . | . . . . Reused . | . . . . Traps Extracted . | . . . . Installed . | . . . . Triggered . | . . . . Exploded 1 | . . . 1 Machines | -11 -10 -10 -10 ---------- Run | Scr Mat Min Exi Machines Disabled 2 | . . . 2 Max in Single Turn 1 | . . . 1 Machines Sabotaged . | . . . . Garrisons Compromised . | . . . . Overloaded Fab Kills . | . . . . Fab Network Shutdowns . | . . . . Hacking | -11 -10 -10 -10 --------- Run | Scr Mat Min Exi Machines Accessed 6 | . 3 . 3 Terminals 3 | . 3 . . Fabricators . | . . . . Repair Stations . | . . . . Recycling Units . | . . . . Scanalyzers . | . . . . Garrison Access . | . . . . Total Hacks 38 | . 12 . 26 Successful 29 | . 3 . 26 Failed 9 | . 9 . . Catastrophic 1 | . 1 . . Database Lockouts . | . . . . Manual 12 | . 11 . 1 Terminals 12 | . 12 . . Fabricators . | . . . . Repair Stations . | . . . . Recycling Units . | . . . . Scanalyzers . | . . . . Garrison Access . | . . . . Terminal Hacks 29 | . 3 . 26 Record 27 | . 1 . 26 Branch Access Points 1 | . 1 . . Locate Traps 1 | . 1 . . Fabricator Hacks . | . . . . Repair Station Hacks . | . . . . Recycling Unit Hacks . | . . . . Scanalyzer . | . . . . Garrison Access Hacks . | . . . . Unauthorized Hacks . | . . . . Terminals . | . . . . Fabricators . | . . . . Repair Stations . | . . . . Recycling Units . | . . . . Scanalyzers . | . . . . Garrison Access . | . . . . Data Cores Recovered . | . . . . Used . | . . . . Hacking Detections 3 | . 3 . . Full Trace Events 3 | . 3 . . Feedback Events 1 | . 1 . . Corruption 1 | . 1 . . Feedback Blocked . | . . . . Robot Schematics Acquired . | . . . . Robots Built . | . . . . Matter . | . . . . Time . | . . . . Total Robot Build Rating . | . . . . Part Schematics Acquired . | . . . . Parts Built . | . . . . Matter . | . . . . Time . | . . . . Total Part Build Rating . | . . . . Parts Repaired . | . . . . Time . | . . . . Parts Recycled . | . . . . Recycled Matter . | . . . . Retrieved Matter . | . . . . Retrieved Components . | . . . . Parts Scanalyzed . | . . . . Part Schematics Acquired . | . . . . Parts Damaged . | . . . . Bothacking | -11 -10 -10 -10 ------------ Run | Scr Mat Min Exi Used RIF Installer . | . . . . Robots Hacked . | . . . . Non-combat . | . . . . Combat . | . . . . Robot Hacks Applied . | . . . . Relay Couplers Released . | . . . . Robots Rewired . | . . . . Allies Hacked . | . . . . Hacks Repelled . | . . . . Allies | -11 -10 -10 -10 -------- Run | Scr Mat Min Exi Total Allies . | . . . . Largest Group . | . . . . Highest-Rated Group . | . . . . Highest-Rated Ally . | . . . . Total Orders . | . . . . Ally Attacks . | . . . . Total Damage . | . . . . Kills . | . . . . Allies Corrupted . | . . . . Allies Melted . | . . . . Intel | -11 -10 -10 -10 ------- Run | Scr Mat Min Exi Robot Analysis Total . | . . . . Derelict Logs Recovered 1 | . . 1 . Drone Launches . | . . . . Drone Recoveries . | . . . . Exploration | -11 -10 -10 -10 ------------- Run | Scr Mat Min Exi Turns Passed 1408 | 73 337 522 476 Spaces Moved 812 | 39 166 343 264 Core 6 | 6 . . . Treads . | . . . . Legs 766 | . 159 343 264 Wheels 40 | 33 7 . . Hover . | . . . . Flight . | . . . . Fastest Speed 50 | 50 100 150 150 Average Speed 150 | 96 147 150 161 Slowest Speed 210 | 100 150 150 210 Overloaded Moves . | . . . . Propulsion Burnouts . | . . . . Robots Hopped . | . . . . Cave-ins Triggered . | . . . . Time Travels 1 | . . . 1 Exploration Rate (%) 37 | 5 29 75 41 Regions Visited 3 Branch Regions 2 Pre-discovered Areas . | . . . . Known Exits Taken 2 | . 1 1 . Unknown Exits Taken 1 | 1 . . . Scrap Searched 2 | . . 2 . Spaces Dug . | . . . . Terrain Destroyed 28 | . . . 28 Melee . | . . . . Projectile . | . . . . AOE 28 | . . . 28 Terrain Rammed . | . . . . Walls Destroyed . | . . . . Machines Disabled . | . . . . Actions | -11 -10 -10 -10 --------- Run | Scr Mat Min Exi Total 934 | 55 236 349 294 Wait 36 | . 32 4 . Move 809 | 38 165 342 264 Hop . | . . . . Pick Up 16 | 3 10 1 2 Fast Attach 12 | 6 3 . 3 Attach 5 | . . . 5 Detach 1 | . 1 . . Swap 8 | . 6 . 2 Drop 13 | . 8 1 4 Fire 34 | 8 11 1 14 Melee . | . . . . Ram . | . . . . Kick . | . . . . Crush . | . . . . Escape Stasis . | . . . . Rewire . | . . . . Trap . | . . . . Miscellaneous . | . . . . Route ------- -11/Scrapyard -10/Materials -10/Mines (discovered 2 exits: [*Mat] / *Exi) -10/Exiles History --------- Turn | Location | Event 13 | -11/Scrapyard | Discovered new exit (range 16) 74 | -11/Scrapyard | Entered Materials 217 | -10/Materials | Identified exit to Mines 333 | -10/Materials | Build established: Mutant 411 | -10/Materials | Entered Mines 525 | -10/Mines | YI-UF0 nonchalantly dropped a Grenade Launcher on the ground 555 | -10/Mines | Identified exit to Exiles 907 | -10/Mines | Discovered new exit (range 8) 927 | -10/Mines | Deemed a non-threat by the Exiles lab entrance 933 | -10/Mines | Entered Exiles 974 | -10/Exiles | Met 8R-AWN 996 | -10/Exiles | Met EX-HEX 1040 | -10/Exiles | Met EX-BIN 1056 | -10/Exiles | Aligned with FarCom system 1058 | -10/Exiles | Given EX-Vault access code 1119 | -10/Exiles | Opened EX-Vault 1126 | -10/Exiles | Found Prototype Device 1126 | -10/Exiles | Identified Cloak of Protection 1134 | -10/Exiles | Found Prototype Device 1134 | -10/Exiles | Identified Trap Reconfigurator 1142 | -10/Exiles | Found Prototype Device 1142 | -10/Exiles | Identified Chronowheel 1142 | -10/Exiles | Activated Chronowheel 1142 | -10/Exiles | Spacetime reconverged on an earlier point 1183 | -10/Exiles | Warned to stay clear of 0b10 Research branches 1187 | -10/Exiles | Exiles lab attacked by MAIN.C 1366 | -10/Exiles | Core integrity fell below 50% 1394 | -10/Exiles | Core integrity fell below 20% 1400 | -10/Exiles | Destroyed 13 combat bots 1409 | -10/Exiles | Destroyed by H-55 Commando with Gauss Rifle Last Messages --------------- 01366_ 01379_ P-60 Hacker destroyed. 01379_ Grenade Launcher destroyed. 01379_ Destroyed Grenade Launcher. 01383_ The unstable cave ceiling collapses. 01393_ Knocked back. 01406_ Penetrated by Slug. 01409_ B-36 Bruiser destroyed. 01409_ Penetrated by Slug. Map ----- +----------------------------------------------------+ | ?????????????????????# #?????????????????????? | | ?????????????????????# #########?????????????? | | ?????????????????????# ##""""""#?????????????? | | ?????????????????????# ## """#?????????????? | | ?????????????????????# X""#?????????????? | | ?????????????????????# ## """#?????????????? | | ?????????????######### ##""""""#?????????????? | | ?????????????#""""""## #########?????????????? | | ?????????????#"""" ## #?????????????????????? | | ?????????????#""X" #?????????????????????? | | ?????????????#" #?????????????????????? | | ?????????????#" ## #?????????????????????? | | ?????????????#""""""## #?#########???????????? | | ?????????????##"###### #?#"""""""#???????????? | | ????????????? "?????# #?#"""""""#???????????? | | ????????????"""??????# #?#"" """"#???????????? | | ????????????"""?????## ### " "#???????????? | | ????????????????????#" ""#???????????? | | ????????????????????#" "#???????????? | | ????????????????????#" ""#???????????? | | ????????????????????#" """#???????????? | | ????????????????????#" """#???????????? | | ????????????????????#" "##??????????? | | ????????????????????## """"""?????????? | | ?????????????????????# % """###?????????? | | ????????????????????## @ """""??????????? | | ????????????????????# "" #???????????? | | ????????????????????## """"""""#???????????? | | ??????????????????# [ ########???????????? | | ?????????????????# p l= = #??????????????????? | | ?????????????????# g #?????????????????? | | ????????????????"" h * ##?????????????????? | | ???????????????"" "ggp = ##??###########?????? | | ???????????????"" hg #####"""""""""##????? | | ?????????????? " g h " """ """"##???? | | ???????????? "" " #???? | | ???????????? " """#???? | | ???????????? " "#???? | | ????????????? " "##??? | | ????????????? ""###? | | ????????????? """""" """#? | | ?????????????? ######""" "#? | | ?????????????? ""#?????#####""" ## | | ???????????????????????????##""" # | | ????????????????????????????#"""" | | ????????????????????????????#"" | | ????????????????????????????"""" | | ????????????????????????????? | | ????????????????????????????? | | ???????????????????????????? | +----------------------------------------------------+ Best States ------------- Heat Dissipation 39 Energy Generation 10 Energy Capacity 250 Matter Stores 300 Matter Capacity 300 Sight Range 16 Terrain Scan Density 10 Evasion (%) 40 Item Schematics ----------------- None Robot Schematics ------------------ None Fabricated ------------ Nothing Alien Tech Used ----------------- None Achievements -------------- None Challenges ------------ None Game ------ Seed LightMicroProcessor Manual? 0 Play Time 00:16:20 Cumulative 16.4 hours Start 2020.12.30 @ 01:11:42 End 2020.12.30 @ 01:28:48 Sessions 1 Manual Loads 0 Difficulty Rogue Special Mode None Game No. 24 Rogue 24 Adventurer 0 Explorer 0 Win Type - Total 0 Types 0/0/0/0/0/0/0/0/0 Lore% 16 Gallery% 31 Achievement% 21 Wizard Run 0 Options --------- ASCII 0 Keyboard 0 Movement Numpad Keybinds 0 Fullscreen 2 Font 18/X11 Map View 76x50 Tactical HUD 1 Map Filters NONE Filters NONE Steam 0 RUN: 81057825-f1ab-42dc-98de-e936b8a0e6b7